{"text_format":"1","workbook":"xlsx","n_sheets":1,"sheets":["Droites"],"not_rendered":{"charts":0,"images":0,"macros":1,"external_links":0,"defined_names":23,"comments":0,"pivot_tables":0},"unopened":[],"bounds":{"document_bytes":16777216,"sheet_cells":100000,"rows_first":2000,"rows_last":500,"rows_between":2000,"halvings":0,"cell_chars":16384,"cell_head_chars":4096},"cells_cut":0,"cells_raw":0,"read":"whole","date_system":"1900"}

{"sheet":"Droites","index":0,"n_rows":118,"n_cols":82,"rows_kept":118,"cut":false,"hidden":false,"merged":[[117,76,117,77],[115,18,115,19],[115,28,115,29],[115,44,115,45],[115,48,115,49],[115,53,115,54],[115,63,115,64],[115,76,115,77],[116,18,116,19],[116,28,116,29],[116,44,116,45],[116,48,116,49],[116,53,116,54],[116,63,116,64],[116,76,116,77],[104,18,104,19],[104,28,104,29],[104,44,104,45],[104,48,104,49],[104,53,104,54],[104,63,104,64],[104,76,104,77],[105,18,105,19],[105,28,105,29],[105,44,105,45],[105,48,105,49],[105,53,105,54],[105,63,105,64],[105,76,105,77],[92,18,92,19],[92,28,92,29],[92,44,92,45],[92,48,92,49],[92,53,92,54],[92,63,92,64],[92,76,92,77],[93,18,93,19],[93,28,93,29],[93,44,93,45],[93,48,93,49],[93,53,93,54],[93,63,93,64],[93,76,93,77],[57,76,57,77],[58,18,58,19],[58,28,58,29],[58,44,58,45],[58,48,58,49],[58,53,58,54],[58,63,58,64],[58,76,58,77],[67,18,67,19],[67,28,67,29],[67,44,67,45],[67,48,67,49],[67,53,67,54],[67,63,67,64],[67,76,67,77],[45,76,45,77],[46,18,46,19],[46,28,46,29],[46,44,46,45],[46,48,46,49],[46,53,46,54],[46,63,46,64],[46,76,46,77],[56,18,56,19],[56,28,56,29],[56,44,56,45],[56,48,56,49],[56,53,56,54],[56,63,56,64],[56,76,56,77],[34,48,34,49],[34,53,34,54],[34,63,34,64],[34,76,34,77],[44,18,44,19],[44,28,44,29],[44,44,44,45],[44,48,44,49],[44,53,44,54],[44,63,44,64],[44,76,44,77],[22,76,22,77],[32,18,32,19],[32,28,32,29],[32,44,32,45],[32,48,32,49],[32,53,32,54],[32,63,32,64],[32,76,32,77],[33,18,33,19],[33,28,33,29],[33,44,33,45],[33,48,33,49],[33,53,33,54],[33,63,33,64],[33,76,33,77],[8,18,8,19],[9,18,9,19],[10,18,10,19],[8,48,8,49],[9,48,9,49],[10,48,10,49],[20,18,20,19],[20,28,20,29],[20,44,20,45],[20,48,20,49],[8,53,8,54],[9,53,9,54],[10,53,10,54],[8,44,8,45],[9,44,9,45],[10,44,10,45],[8,76,8,77],[9,76,9,77],[10,76,10,77],[8,63,8,64],[9,63,9,64],[10,63,10,64],[20,53,20,54],[20,63,20,64],[20,76,20,77],[21,44,21,45],[21,48,21,49],[21,53,21,54],[21,63,21,64],[21,76,21,77],[22,44,22,45],[22,48,22,49],[22,53,22,54],[67,4,67,5],[68,4,68,5],[69,4,69,5],[79,4,79,5],[72,7,72,8],[72,15,72,16],[72,23,72,24],[68,18,68,19],[68,28,68,29],[68,44,68,45],[69,18,69,19],[69,28,69,29],[69,44,69,45],[79,18,79,19],[79,28,79,29],[79,44,79,45],[34,4,34,5],[44,4,44,5],[45,4,45,5],[46,4,46,5],[34,18,34,19],[34,28,34,29],[34,44,34,45],[45,18,45,19],[45,28,45,29],[45,44,45,45],[108,39,108,40],[96,39,96,40],[96,47,96,48],[96,55,96,56],[72,39,72,40],[72,31,72,32],[72,47,72,48],[72,55,72,56],[72,63,72,64],[72,71,72,72],[60,39,60,40],[60,47,60,48],[60,55,60,56],[68,48,68,49],[68,53,68,54],[68,63,68,64],[68,76,68,77],[69,48,69,49],[69,53,69,54],[69,63,69,64],[69,76,69,77],[79,48,79,49],[79,53,79,54],[0,81,0,90],[1,81,1,90],[1,39,1,40],[16,105,16,106],[25,39,25,40],[13,39,13,40],[21,80,21,90],[22,80,22,90],[24,80,24,93],[13,47,13,48],[13,55,13,56],[13,63,13,64],[13,71,13,72],[25,47,25,48],[25,55,25,56],[25,63,25,64],[25,71,25,72],[33,80,33,93],[84,39,84,40],[37,47,37,48],[37,55,37,56],[37,63,37,64],[37,71,37,72],[49,23,49,24],[49,31,49,32],[49,47,49,48],[37,39,37,40],[49,39,49,40],[33,69,33,70],[1,47,1,48],[1,55,1,56],[1,63,1,64],[1,71,1,72],[116,4,116,5],[117,4,117,5],[20,4,20,5],[21,4,21,5],[57,4,57,5],[58,4,58,5],[80,4,80,5],[1,7,1,8],[1,15,1,16],[1,23,1,24],[1,31,1,32],[105,4,105,5],[115,4,115,5],[84,7,84,8],[84,15,84,16],[84,23,84,24],[84,31,84,32],[22,69,22,70],[21,25,21,26],[21,69,21,70],[13,7,13,8],[13,15,13,16],[13,23,13,24],[13,31,13,32],[22,4,22,5],[21,18,21,19],[21,28,21,29],[22,18,22,19],[22,28,22,29],[22,63,22,64],[33,25,33,26],[22,25,22,26],[25,31,25,32],[32,4,32,5],[25,7,25,8],[25,15,25,16],[25,23,25,24],[33,4,33,5],[46,25,46,26],[46,69,46,70],[45,25,45,26],[45,69,45,70],[45,48,45,49],[45,53,45,54],[45,63,45,64],[58,69,58,70],[57,25,57,26],[57,69,57,70],[49,71,49,72],[49,55,49,56],[56,4,56,5],[49,7,49,8],[49,15,49,16],[49,63,49,64],[57,18,57,19],[57,28,57,29],[57,44,57,45],[57,48,57,49],[57,53,57,54],[57,63,57,64],[92,25,92,26],[84,71,84,72],[81,25,81,26],[80,25,80,26],[84,47,84,48],[84,55,84,56],[84,63,84,64],[81,4,81,5],[91,4,91,5],[92,4,92,5],[93,4,93,5],[79,63,79,64],[80,18,80,19],[80,28,80,29],[80,44,80,45],[105,69,105,70],[104,25,104,26],[104,69,104,70],[96,63,96,64],[96,71,96,72],[96,7,96,8],[96,15,96,16],[96,23,96,24],[96,31,96,32],[103,4,103,5],[104,4,104,5],[103,18,103,19],[103,28,103,29],[103,44,103,45],[117,25,117,26],[117,69,117,70],[116,25,116,26],[116,69,116,70],[117,18,117,19],[117,28,117,29],[117,44,117,45],[117,48,117,49],[117,53,117,54],[117,63,117,64],[20,25,20,26],[20,69,20,70],[8,25,8,26],[9,25,9,26],[10,25,10,26],[8,4,8,5],[9,4,9,5],[10,4,10,5],[8,28,8,29],[9,28,9,29],[10,28,10,29],[44,25,44,26],[44,69,44,70],[32,25,32,26],[32,69,32,70],[37,7,37,8],[37,15,37,16],[37,23,37,24],[37,31,37,32],[34,25,34,26],[34,69,34,70],[67,25,67,26],[67,69,67,70],[56,25,56,26],[56,69,56,70],[60,63,60,64],[60,71,60,72],[60,7,60,8],[60,15,60,16],[60,23,60,24],[60,31,60,32],[58,25,58,26],[91,25,91,26],[79,25,79,26],[69,25,69,26],[68,69,68,70],[68,25,68,26],[80,48,80,49],[80,53,80,54],[80,63,80,64],[81,18,81,19],[81,28,81,29],[81,44,81,45],[81,48,81,49],[81,53,81,54],[81,63,81,64],[91,18,91,19],[91,28,91,29],[115,25,115,26],[115,69,115,70],[103,25,103,26],[93,25,93,26],[108,47,108,48],[108,55,108,56],[108,63,108,64],[108,71,108,72],[108,7,108,8],[108,15,108,16],[108,23,108,24],[108,31,108,32],[105,25,105,26],[8,69,8,70],[9,69,9,70],[10,69,10,70],[69,69,69,70],[79,69,79,70],[79,76,79,77],[80,69,80,70],[81,69,81,70],[91,69,91,70],[80,76,80,77],[81,76,81,77],[91,44,91,45],[91,48,91,49],[91,53,91,54],[91,63,91,64],[91,76,91,77],[93,69,93,70],[103,69,103,70],[92,69,92,70],[103,48,103,49],[103,53,103,54],[103,63,103,64],[103,76,103,77]]}
["A","Ecris sous chaque flèche la fraction (y compris sous la forme d'un entier + une fraction < 1). Dans le cas de fractions décimales, écris aussi le nombre décimal.",null,null,null,null,null,null,null,null,null,null,null,null,null,null,null,null,null,null,null,null,null,null,null,null,null,null,null,null,null,null,null,null,null,null,null,null,null,null,null,null,null,null,null,null,null,null,null,null,null,null,null,null,null,null,null,null,null,null,null,null,null,null,null,null,null,null,null,null,null,null,null,null,{"$f":"$CC$10","v":"Fiche 269"},null,null,null,null,null,8,"dénominateur"]
[null,null,null,null,null,null,null,1,null,null,null,null,null,null,null,2,null,null,null,null,null,null,null,3,null,null,null,null,null,null,null,4,null,null,null,null,null,null,null,5,null,null,null,null,null,null,null,6,null,null,null,null,null,null,null,7,null,null,null,null,null,null,null,8,null,null,null,null,null,null,null,9,null,null,null,null,null,null,null,null,10,"nombre de fractions sur la droite"]
[]
[]
[]
[]
[]
[]
[null,null,null,null,"↑",null,null,null,null,null,null,null,null,null,null,null,null,null,"↑",null,null,null,null,null,null,"↑",null,null,"↑",null,null,null,null,null,null,null,null,null,null,null,null,null,null,null,"↑",null,null,null,"↑",null,null,null,null,"↑",null,null,null,null,null,null,null,null,null,"↑",null,null,null,null,null,"↑",null,null,null,null,null,null,"↑",null,null,null,{"$f":"COUNTA(A9:CA9)","v":10},"Nombre de fractions effectivement tirées."]
[null,null,null,null,{"$f":"COLUMN()","v":5},null,null,null,null,null,null,null,null,null,null,null,null,null,{"$f":"COLUMN()","v":19},null,null,null,null,null,null,{"$f":"COLUMN()","v":26},null,null,{"$f":"COLUMN()","v":29},null,null,null,null,null,null,null,null,null,null,null,null,null,null,null,{"$f":"COLUMN()","v":45},null,null,null,{"$f":"COLUMN()","v":49},null,null,null,null,{"$f":"COLUMN()","v":54},null,null,null,null,null,null,null,null,null,{"$f":"COLUMN()","v":64},null,null,null,null,null,{"$f":"COLUMN()","v":70},null,null,null,null,null,null,{"$f":"COLUMN()","v":77},null,null,null,{"$f":"CONCATENATE(\"Fiche \", RANDBETWEEN(200,900))","v":"Fiche 269"}]
[null,null,null,null,{"$f":"denominateur1","v":8},null,null,null,null,null,null,null,null,null,null,null,null,null,{"$f":"denominateur1","v":8},null,null,null,null,null,null,{"$f":"denominateur1","v":8},null,null,{"$f":"denominateur1","v":8},null,null,null,null,null,null,null,null,null,null,null,null,null,null,null,{"$f":"denominateur1","v":8},null,null,null,{"$f":"denominateur1","v":8},null,null,null,null,{"$f":"denominateur1","v":8},null,null,null,null,null,null,null,null,null,{"$f":"denominateur1","v":8},null,null,null,null,null,{"$f":"denominateur1","v":8},null,null,null,null,null,null,{"$f":"denominateur1","v":8}]
[]
[{"$f":"A$1","v":"A"},{"$f":"$B$1","v":"Ecris sous chaque flèche la fraction (y compris sous la forme d'un entier + une fraction < 1). Dans le cas de fractions décimales, écris aussi le nombre décimal."},null,null,null,null,null,null,null,null,null,null,null,null,null,null,null,null,null,null,null,null,null,null,null,null,null,null,null,null,null,null,null,null,null,null,null,null,null,null,null,null,null,null,null,null,null,null,null,null,null,null,null,null,null,null,null,null,null,null,null,null,null,null,null,null,null,null,null,null,null,null,null,null,{"$f":"$BW$1","v":"Fiche 269"}]
[null,null,null,null,null,null,null,1,null,null,null,null,null,null,null,2,null,null,null,null,null,null,null,3,null,null,null,null,null,null,null,4,null,null,null,null,null,null,null,5,null,null,null,null,null,null,null,6,null,null,null,null,null,null,null,7,null,null,null,null,null,null,null,8,null,null,null,null,null,null,null,9]
[]
[]
[]
[]
[]
[]
[null,null,null,null,"↑",null,null,null,null,null,null,null,null,null,null,null,null,null,"↑",null,null,null,null,null,null,"↑",null,null,"↑",null,null,null,null,null,null,null,null,null,null,null,null,null,null,null,"↑",null,null,null,"↑",null,null,null,null,"↑",null,null,null,null,null,null,null,null,null,"↑",null,null,null,null,null,"↑",null,null,null,null,null,null,"↑",null,null,null,"1. Sélectionne le dénominateur voulu."]
[null,null,null,null,{"$f":"COLUMN()","v":5},null,null,null,null,null,null,null,null,null,null,null,null,null,{"$f":"COLUMN()","v":19},null,null,null,null,null,null,{"$f":"COLUMN()","v":26},null,null,{"$f":"COLUMN()","v":29},null,null,null,null,null,null,null,null,null,null,null,null,null,null,null,{"$f":"COLUMN()","v":45},null,null,null,{"$f":"COLUMN()","v":49},null,null,null,null,{"$f":"COLUMN()","v":54},null,null,null,null,null,null,null,null,null,{"$f":"COLUMN()","v":64},null,null,null,null,null,{"$f":"COLUMN()","v":70},null,null,null,null,null,null,{"$f":"COLUMN()","v":77},null,null,null,"2. Choisis la quantité de fractions voulue."]
[null,null,null,null,{"$f":"denominateur1","v":8},null,null,null,null,null,null,null,null,null,null,null,null,null,{"$f":"denominateur1","v":8},null,null,null,null,null,null,{"$f":"denominateur1","v":8},null,null,{"$f":"denominateur1","v":8},null,null,null,null,null,null,null,null,null,null,null,null,null,null,null,{"$f":"denominateur1","v":8},null,null,null,{"$f":"denominateur1","v":8},null,null,null,null,{"$f":"denominateur1","v":8},null,null,null,null,null,null,null,null,null,{"$f":"denominateur1","v":8},null,null,null,null,null,{"$f":"denominateur1","v":8},null,null,null,null,null,null,{"$f":"denominateur1","v":8},null,null,null,"3. Clique sur le bouton."]
[]
[{"$f":"$A$1","v":"A"},{"$f":"$B$1","v":"Ecris sous chaque flèche la fraction (y compris sous la forme d'un entier + une fraction < 1). Dans le cas de fractions décimales, écris aussi le nombre décimal."},null,null,null,null,null,null,null,null,null,null,null,null,null,null,null,null,null,null,null,null,null,null,null,null,null,null,null,null,null,null,null,null,null,null,null,null,null,null,null,null,null,null,null,null,null,null,null,null,null,null,null,null,null,null,null,null,null,null,null,null,null,null,null,null,null,null,null,null,null,null,null,null,{"$f":"$BW$1","v":"Fiche 269"},null,null,null,null,null,"A l'ouverture du fichier, il faut activer les macros."]
[null,null,null,null,null,null,null,1,null,null,null,null,null,null,null,2,null,null,null,null,null,null,null,3,null,null,null,null,null,null,null,4,null,null,null,null,null,null,null,5,null,null,null,null,null,null,null,6,null,null,null,null,null,null,null,7,null,null,null,null,null,null,null,8,null,null,null,null,null,null,null,9]
[]
[]
[]
[]
[]
[]
[null,null,null,null,"↑",null,null,null,null,null,null,null,null,null,null,null,null,null,"↑",null,null,null,null,null,null,"↑",null,null,"↑",null,null,null,null,null,null,null,null,null,null,null,null,null,null,null,"↑",null,null,null,"↑",null,null,null,null,"↑",null,null,null,null,null,null,null,null,null,"↑",null,null,null,null,null,"↑",null,null,null,null,null,null,"↑"]
[null,null,null,null,{"$f":"COLUMN()","v":5},null,null,null,null,null,null,null,null,null,null,null,null,null,{"$f":"COLUMN()","v":19},null,null,null,null,null,null,{"$f":"COLUMN()","v":26},null,null,{"$f":"COLUMN()","v":29},null,null,null,null,null,null,null,null,null,null,null,null,null,null,null,{"$f":"COLUMN()","v":45},null,null,null,{"$f":"COLUMN()","v":49},null,null,null,null,{"$f":"COLUMN()","v":54},null,null,null,null,null,null,null,null,null,{"$f":"COLUMN()","v":64},null,null,null,null,null,{"$f":"COLUMN()","v":70},null,null,null,null,null,null,{"$f":"COLUMN()","v":77},null,null,null,"Télécharger Excel 2007 viewer"]
[null,null,null,null,{"$f":"denominateur1","v":8},null,null,null,null,null,null,null,null,null,null,null,null,null,{"$f":"denominateur1","v":8},null,null,null,null,null,null,{"$f":"denominateur1","v":8},null,null,{"$f":"denominateur1","v":8},null,null,null,null,null,null,null,null,null,null,null,null,null,null,null,{"$f":"denominateur1","v":8},null,null,null,{"$f":"denominateur1","v":8},null,null,null,null,{"$f":"denominateur1","v":8},null,null,null,null,null,null,null,null,null,{"$f":"denominateur1","v":8},null,null,null,null,null,{"$f":"denominateur1","v":8},null,null,null,null,null,null,{"$f":"denominateur1","v":8}]
[]
[{"$f":"$A$1","v":"A"},{"$f":"$B$1","v":"Ecris sous chaque flèche la fraction (y compris sous la forme d'un entier + une fraction < 1). Dans le cas de fractions décimales, écris aussi le nombre décimal."},null,null,null,null,null,null,null,null,null,null,null,null,null,null,null,null,null,null,null,null,null,null,null,null,null,null,null,null,null,null,null,null,null,null,null,null,null,null,null,null,null,null,null,null,null,null,null,null,null,null,null,null,null,null,null,null,null,null,null,null,null,null,null,null,null,null,null,null,null,null,null,null,{"$f":"$BW$1","v":"Fiche 269"}]
[null,null,null,null,null,null,null,1,null,null,null,null,null,null,null,2,null,null,null,null,null,null,null,3,null,null,null,null,null,null,null,4,null,null,null,null,null,null,null,5,null,null,null,null,null,null,null,6,null,null,null,null,null,null,null,7,null,null,null,null,null,null,null,8,null,null,null,null,null,null,null,9]
[]
[]
[]
[]
[]
[]
[null,null,null,null,"↑",null,null,null,null,null,null,null,null,null,null,null,null,null,"↑",null,null,null,null,null,null,"↑",null,null,"↑",null,null,null,null,null,null,null,null,null,null,null,null,null,null,null,"↑",null,null,null,"↑",null,null,null,null,"↑",null,null,null,null,null,null,null,null,null,"↑",null,null,null,null,null,"↑",null,null,null,null,null,null,"↑"]
[null,null,null,null,{"$f":"COLUMN()","v":5},null,null,null,null,null,null,null,null,null,null,null,null,null,{"$f":"COLUMN()","v":19},null,null,null,null,null,null,{"$f":"COLUMN()","v":26},null,null,{"$f":"COLUMN()","v":29},null,null,null,null,null,null,null,null,null,null,null,null,null,null,null,{"$f":"COLUMN()","v":45},null,null,null,{"$f":"COLUMN()","v":49},null,null,null,null,{"$f":"COLUMN()","v":54},null,null,null,null,null,null,null,null,null,{"$f":"COLUMN()","v":64},null,null,null,null,null,{"$f":"COLUMN()","v":70},null,null,null,null,null,null,{"$f":"COLUMN()","v":77}]
[null,null,null,null,{"$f":"denominateur1","v":8},null,null,null,null,null,null,null,null,null,null,null,null,null,{"$f":"denominateur1","v":8},null,null,null,null,null,null,{"$f":"denominateur1","v":8},null,null,{"$f":"denominateur1","v":8},null,null,null,null,null,null,null,null,null,null,null,null,null,null,null,{"$f":"denominateur1","v":8},null,null,null,{"$f":"denominateur1","v":8},null,null,null,null,{"$f":"denominateur1","v":8},null,null,null,null,null,null,null,null,null,{"$f":"denominateur1","v":8},null,null,null,null,null,{"$f":"denominateur1","v":8},null,null,null,null,null,null,{"$f":"denominateur1","v":8}]
[]
[{"$f":"$A$1","v":"A"},{"$f":"$B$1","v":"Ecris sous chaque flèche la fraction (y compris sous la forme d'un entier + une fraction < 1). Dans le cas de fractions décimales, écris aussi le nombre décimal."},null,null,null,null,null,null,null,null,null,null,null,null,null,null,null,null,null,null,null,null,null,null,null,null,null,null,null,null,null,null,null,null,null,null,null,null,null,null,null,null,null,null,null,null,null,null,null,null,null,null,null,null,null,null,null,null,null,null,null,null,null,null,null,null,null,null,null,null,null,null,null,null,{"$f":"$BW$1","v":"Fiche 269"}]
[null,null,null,null,null,null,null,1,null,null,null,null,null,null,null,2,null,null,null,null,null,null,null,3,null,null,null,null,null,null,null,4,null,null,null,null,null,null,null,5,null,null,null,null,null,null,null,6,null,null,null,null,null,null,null,7,null,null,null,null,null,null,null,8,null,null,null,null,null,null,null,9]
[]
[]
[]
[]
[]
[]
[null,null,null,null,"↑",null,null,null,null,null,null,null,null,null,null,null,null,null,"↑",null,null,null,null,null,null,"↑",null,null,"↑",null,null,null,null,null,null,null,null,null,null,null,null,null,null,null,"↑",null,null,null,"↑",null,null,null,null,"↑",null,null,null,null,null,null,null,null,null,"↑",null,null,null,null,null,"↑",null,null,null,null,null,null,"↑"]
[null,null,null,null,{"$f":"COLUMN()","v":5},null,null,null,null,null,null,null,null,null,null,null,null,null,{"$f":"COLUMN()","v":19},null,null,null,null,null,null,{"$f":"COLUMN()","v":26},null,null,{"$f":"COLUMN()","v":29},null,null,null,null,null,null,null,null,null,null,null,null,null,null,null,{"$f":"COLUMN()","v":45},null,null,null,{"$f":"COLUMN()","v":49},null,null,null,null,{"$f":"COLUMN()","v":54},null,null,null,null,null,null,null,null,null,{"$f":"COLUMN()","v":64},null,null,null,null,null,{"$f":"COLUMN()","v":70},null,null,null,null,null,null,{"$f":"COLUMN()","v":77}]
[null,null,null,null,{"$f":"denominateur1","v":8},null,null,null,null,null,null,null,null,null,null,null,null,null,{"$f":"denominateur1","v":8},null,null,null,null,null,null,{"$f":"denominateur1","v":8},null,null,{"$f":"denominateur1","v":8},null,null,null,null,null,null,null,null,null,null,null,null,null,null,null,{"$f":"denominateur1","v":8},null,null,null,{"$f":"denominateur1","v":8},null,null,null,null,{"$f":"denominateur1","v":8},null,null,null,null,null,null,null,null,null,{"$f":"denominateur1","v":8},null,null,null,null,null,{"$f":"denominateur1","v":8},null,null,null,null,null,null,{"$f":"denominateur1","v":8}]
["A","Ecris sous chaque flèche la fraction (y compris sous la forme d'un entier + une fraction < 1). Dans le cas de fractions décimales, écris aussi le nombre décimal.",null,null,null,null,null,null,null,null,null,null,null,null,null,null,null,null,null,null,null,null,null,null,null,null,null,null,null,null,null,null,null,null,null,null,null,null,null,null,null,null,null,null,null,null,null,null,null,null,null,null,null,null,null,null,null,null,null,null,null,null,null,null,null,null,null,null,null,null,null,null,null,null,{"$f":"$CC$10","v":"Fiche 269"}]
[null,null,null,null,null,null,null,1,null,null,null,null,null,null,null,2,null,null,null,null,null,null,null,3,null,null,null,null,null,null,null,4,null,null,null,null,null,null,null,5,null,null,null,null,null,null,null,6,null,null,null,null,null,null,null,7,null,null,null,null,null,null,null,8,null,null,null,null,null,null,null,9]
[]
[]
[]
[]
[]
[]
[null,null,null,null,"↑",null,null,null,null,null,null,null,null,null,null,null,null,null,"↑",null,null,null,null,null,null,"↑",null,null,"↑",null,null,null,null,null,null,null,null,null,null,null,null,null,null,null,"↑",null,null,null,"↑",null,null,null,null,"↑",null,null,null,null,null,null,null,null,null,"↑",null,null,null,null,null,"↑",null,null,null,null,null,null,"↑"]
[null,null,null,null,{"$f":"COLUMN()","v":5},null,null,null,null,null,null,null,null,null,null,null,null,null,{"$f":"COLUMN()","v":19},null,null,null,null,null,null,{"$f":"COLUMN()","v":26},null,null,{"$f":"COLUMN()","v":29},null,null,null,null,null,null,null,null,null,null,null,null,null,null,null,{"$f":"COLUMN()","v":45},null,null,null,{"$f":"COLUMN()","v":49},null,null,null,null,{"$f":"COLUMN()","v":54},null,null,null,null,null,null,null,null,null,{"$f":"COLUMN()","v":64},null,null,null,null,null,{"$f":"COLUMN()","v":70},null,null,null,null,null,null,{"$f":"COLUMN()","v":77}]
[null,null,null,null,{"$f":"denominateur1","v":8},null,null,null,null,null,null,null,null,null,null,null,null,null,{"$f":"denominateur1","v":8},null,null,null,null,null,null,{"$f":"denominateur1","v":8},null,null,{"$f":"denominateur1","v":8},null,null,null,null,null,null,null,null,null,null,null,null,null,null,null,{"$f":"denominateur1","v":8},null,null,null,{"$f":"denominateur1","v":8},null,null,null,null,{"$f":"denominateur1","v":8},null,null,null,null,null,null,null,null,null,{"$f":"denominateur1","v":8},null,null,null,null,null,{"$f":"denominateur1","v":8},null,null,null,null,null,null,{"$f":"denominateur1","v":8}]
[]
[{"$f":"A$1","v":"A"},{"$f":"$B$1","v":"Ecris sous chaque flèche la fraction (y compris sous la forme d'un entier + une fraction < 1). Dans le cas de fractions décimales, écris aussi le nombre décimal."},null,null,null,null,null,null,null,null,null,null,null,null,null,null,null,null,null,null,null,null,null,null,null,null,null,null,null,null,null,null,null,null,null,null,null,null,null,null,null,null,null,null,null,null,null,null,null,null,null,null,null,null,null,null,null,null,null,null,null,null,null,null,null,null,null,null,null,null,null,null,null,null,{"$f":"$BW$1","v":"Fiche 269"}]
[null,null,null,null,null,null,null,1,null,null,null,null,null,null,null,2,null,null,null,null,null,null,null,3,null,null,null,null,null,null,null,4,null,null,null,null,null,null,null,5,null,null,null,null,null,null,null,6,null,null,null,null,null,null,null,7,null,null,null,null,null,null,null,8,null,null,null,null,null,null,null,9]
[]
[]
[]
[]
[]
[]
[null,null,null,null,"↑",null,null,null,null,null,null,null,null,null,null,null,null,null,"↑",null,null,null,null,null,null,"↑",null,null,"↑",null,null,null,null,null,null,null,null,null,null,null,null,null,null,null,"↑",null,null,null,"↑",null,null,null,null,"↑",null,null,null,null,null,null,null,null,null,"↑",null,null,null,null,null,"↑",null,null,null,null,null,null,"↑"]
[null,null,null,null,{"$f":"COLUMN()","v":5},null,null,null,null,null,null,null,null,null,null,null,null,null,{"$f":"COLUMN()","v":19},null,null,null,null,null,null,{"$f":"COLUMN()","v":26},null,null,{"$f":"COLUMN()","v":29},null,null,null,null,null,null,null,null,null,null,null,null,null,null,null,{"$f":"COLUMN()","v":45},null,null,null,{"$f":"COLUMN()","v":49},null,null,null,null,{"$f":"COLUMN()","v":54},null,null,null,null,null,null,null,null,null,{"$f":"COLUMN()","v":64},null,null,null,null,null,{"$f":"COLUMN()","v":70},null,null,null,null,null,null,{"$f":"COLUMN()","v":77}]
[null,null,null,null,{"$f":"denominateur1","v":8},null,null,null,null,null,null,null,null,null,null,null,null,null,{"$f":"denominateur1","v":8},null,null,null,null,null,null,{"$f":"denominateur1","v":8},null,null,{"$f":"denominateur1","v":8},null,null,null,null,null,null,null,null,null,null,null,null,null,null,null,{"$f":"denominateur1","v":8},null,null,null,{"$f":"denominateur1","v":8},null,null,null,null,{"$f":"denominateur1","v":8},null,null,null,null,null,null,null,null,null,{"$f":"denominateur1","v":8},null,null,null,null,null,{"$f":"denominateur1","v":8},null,null,null,null,null,null,{"$f":"denominateur1","v":8}]
[]
[{"$f":"$A$1","v":"A"},{"$f":"$B$1","v":"Ecris sous chaque flèche la fraction (y compris sous la forme d'un entier + une fraction < 1). Dans le cas de fractions décimales, écris aussi le nombre décimal."},null,null,null,null,null,null,null,null,null,null,null,null,null,null,null,null,null,null,null,null,null,null,null,null,null,null,null,null,null,null,null,null,null,null,null,null,null,null,null,null,null,null,null,null,null,null,null,null,null,null,null,null,null,null,null,null,null,null,null,null,null,null,null,null,null,null,null,null,null,null,null,null,{"$f":"$BW$1","v":"Fiche 269"}]
[null,null,null,null,null,null,null,1,null,null,null,null,null,null,null,2,null,null,null,null,null,null,null,3,null,null,null,null,null,null,null,4,null,null,null,null,null,null,null,5,null,null,null,null,null,null,null,6,null,null,null,null,null,null,null,7,null,null,null,null,null,null,null,8,null,null,null,null,null,null,null,9]
[]
[]
[]
[]
[]
[]
[null,null,null,null,"↑",null,null,null,null,null,null,null,null,null,null,null,null,null,"↑",null,null,null,null,null,null,"↑",null,null,"↑",null,null,null,null,null,null,null,null,null,null,null,null,null,null,null,"↑",null,null,null,"↑",null,null,null,null,"↑",null,null,null,null,null,null,null,null,null,"↑",null,null,null,null,null,"↑",null,null,null,null,null,null,"↑"]
[null,null,null,null,{"$f":"COLUMN()","v":5},null,null,null,null,null,null,null,null,null,null,null,null,null,{"$f":"COLUMN()","v":19},null,null,null,null,null,null,{"$f":"COLUMN()","v":26},null,null,{"$f":"COLUMN()","v":29},null,null,null,null,null,null,null,null,null,null,null,null,null,null,null,{"$f":"COLUMN()","v":45},null,null,null,{"$f":"COLUMN()","v":49},null,null,null,null,{"$f":"COLUMN()","v":54},null,null,null,null,null,null,null,null,null,{"$f":"COLUMN()","v":64},null,null,null,null,null,{"$f":"COLUMN()","v":70},null,null,null,null,null,null,{"$f":"COLUMN()","v":77}]
[null,null,null,null,{"$f":"denominateur1","v":8},null,null,null,null,null,null,null,null,null,null,null,null,null,{"$f":"denominateur1","v":8},null,null,null,null,null,null,{"$f":"denominateur1","v":8},null,null,{"$f":"denominateur1","v":8},null,null,null,null,null,null,null,null,null,null,null,null,null,null,null,{"$f":"denominateur1","v":8},null,null,null,{"$f":"denominateur1","v":8},null,null,null,null,{"$f":"denominateur1","v":8},null,null,null,null,null,null,null,null,null,{"$f":"denominateur1","v":8},null,null,null,null,null,{"$f":"denominateur1","v":8},null,null,null,null,null,null,{"$f":"denominateur1","v":8}]
[]
[{"$f":"$A$1","v":"A"},{"$f":"$B$1","v":"Ecris sous chaque flèche la fraction (y compris sous la forme d'un entier + une fraction < 1). Dans le cas de fractions décimales, écris aussi le nombre décimal."},null,null,null,null,null,null,null,null,null,null,null,null,null,null,null,null,null,null,null,null,null,null,null,null,null,null,null,null,null,null,null,null,null,null,null,null,null,null,null,null,null,null,null,null,null,null,null,null,null,null,null,null,null,null,null,null,null,null,null,null,null,null,null,null,null,null,null,null,null,null,null,null,{"$f":"$BW$1","v":"Fiche 269"}]
[null,null,null,null,null,null,null,1,null,null,null,null,null,null,null,2,null,null,null,null,null,null,null,3,null,null,null,null,null,null,null,4,null,null,null,null,null,null,null,5,null,null,null,null,null,null,null,6,null,null,null,null,null,null,null,7,null,null,null,null,null,null,null,8,null,null,null,null,null,null,null,9]
[]
[]
[]
[]
[]
[]
[null,null,null,null,"↑",null,null,null,null,null,null,null,null,null,null,null,null,null,"↑",null,null,null,null,null,null,"↑",null,null,"↑",null,null,null,null,null,null,null,null,null,null,null,null,null,null,null,"↑",null,null,null,"↑",null,null,null,null,"↑",null,null,null,null,null,null,null,null,null,"↑",null,null,null,null,null,"↑",null,null,null,null,null,null,"↑"]
[null,null,null,null,{"$f":"COLUMN()","v":5},null,null,null,null,null,null,null,null,null,null,null,null,null,{"$f":"COLUMN()","v":19},null,null,null,null,null,null,{"$f":"COLUMN()","v":26},null,null,{"$f":"COLUMN()","v":29},null,null,null,null,null,null,null,null,null,null,null,null,null,null,null,{"$f":"COLUMN()","v":45},null,null,null,{"$f":"COLUMN()","v":49},null,null,null,null,{"$f":"COLUMN()","v":54},null,null,null,null,null,null,null,null,null,{"$f":"COLUMN()","v":64},null,null,null,null,null,{"$f":"COLUMN()","v":70},null,null,null,null,null,null,{"$f":"COLUMN()","v":77}]
[null,null,null,null,{"$f":"denominateur1","v":8},null,null,null,null,null,null,null,null,null,null,null,null,null,{"$f":"denominateur1","v":8},null,null,null,null,null,null,{"$f":"denominateur1","v":8},null,null,{"$f":"denominateur1","v":8},null,null,null,null,null,null,null,null,null,null,null,null,null,null,null,{"$f":"denominateur1","v":8},null,null,null,{"$f":"denominateur1","v":8},null,null,null,null,{"$f":"denominateur1","v":8},null,null,null,null,null,null,null,null,null,{"$f":"denominateur1","v":8},null,null,null,null,null,{"$f":"denominateur1","v":8},null,null,null,null,null,null,{"$f":"denominateur1","v":8}]
[]
[{"$f":"$A$1","v":"A"},{"$f":"$B$1","v":"Ecris sous chaque flèche la fraction (y compris sous la forme d'un entier + une fraction < 1). Dans le cas de fractions décimales, écris aussi le nombre décimal."},null,null,null,null,null,null,null,null,null,null,null,null,null,null,null,null,null,null,null,null,null,null,null,null,null,null,null,null,null,null,null,null,null,null,null,null,null,null,null,null,null,null,null,null,null,null,null,null,null,null,null,null,null,null,null,null,null,null,null,null,null,null,null,null,null,null,null,null,null,null,null,null,{"$f":"$BW$1","v":"Fiche 269"}]
[null,null,null,null,null,null,null,1,null,null,null,null,null,null,null,2,null,null,null,null,null,null,null,3,null,null,null,null,null,null,null,4,null,null,null,null,null,null,null,5,null,null,null,null,null,null,null,6,null,null,null,null,null,null,null,7,null,null,null,null,null,null,null,8,null,null,null,null,null,null,null,9]
[]
[]
[]
[]
[]
[]
[null,null,null,null,"↑",null,null,null,null,null,null,null,null,null,null,null,null,null,"↑",null,null,null,null,null,null,"↑",null,null,"↑",null,null,null,null,null,null,null,null,null,null,null,null,null,null,null,"↑",null,null,null,"↑",null,null,null,null,"↑",null,null,null,null,null,null,null,null,null,"↑",null,null,null,null,null,"↑",null,null,null,null,null,null,"↑"]
[null,null,null,null,{"$f":"COLUMN()","v":5},null,null,null,null,null,null,null,null,null,null,null,null,null,{"$f":"COLUMN()","v":19},null,null,null,null,null,null,{"$f":"COLUMN()","v":26},null,null,{"$f":"COLUMN()","v":29},null,null,null,null,null,null,null,null,null,null,null,null,null,null,null,{"$f":"COLUMN()","v":45},null,null,null,{"$f":"COLUMN()","v":49},null,null,null,null,{"$f":"COLUMN()","v":54},null,null,null,null,null,null,null,null,null,{"$f":"COLUMN()","v":64},null,null,null,null,null,{"$f":"COLUMN()","v":70},null,null,null,null,null,null,{"$f":"COLUMN()","v":77}]
[null,null,null,null,{"$f":"denominateur1","v":8},null,null,null,null,null,null,null,null,null,null,null,null,null,{"$f":"denominateur1","v":8},null,null,null,null,null,null,{"$f":"denominateur1","v":8},null,null,{"$f":"denominateur1","v":8},null,null,null,null,null,null,null,null,null,null,null,null,null,null,null,{"$f":"denominateur1","v":8},null,null,null,{"$f":"denominateur1","v":8},null,null,null,null,{"$f":"denominateur1","v":8},null,null,null,null,null,null,null,null,null,{"$f":"denominateur1","v":8},null,null,null,null,null,{"$f":"denominateur1","v":8},null,null,null,null,null,null,{"$f":"denominateur1","v":8}]